fUSD/lending_fUSD_20240414
["ID","MTS","AMOUNT","RATE_DAILY","PERIOD"]
[322598011,1713106240338,-10385.00542279,0.00027833,2]
[322598012,1713106240347,-314.10690144,0.0002815,2]
[322598013,1713106240356,-2144.10828255,0.00028171,2]
[322598014,1713106240365,-456.82493093,0.00028246,4]
[322598015,1713106240375,-2532.03690616,0.00028511,2]
[322598016,1713106240385,-10385.00542279,0.00028511,2]
[322598017,1713106240393,-2144.10828255,0.00028704,2]
[322598018,1713106240403,-456.82493093,0.00028797,4]
[322598019,1713106240412,-314.10690144,0.000289,2]
[322598020,1713106240422,-5114.71498827,0.00029,2]
[322598021,1713106240431,-562.05444632,0.00029,2]
[322598022,1713106240441,-1400.0,0.00029,3]
[322598023,1713106240450,-155.31,0.00029,2]
[322598024,1713106240460,-155.31,0.00029,2]
[322598025,1713106240469,-155.31,0.00029,2]
[322598026,1713106240479,-2532.03690616,0.00029188,2]
[322598027,1713106240488,-10385.00542279,0.00029188,2]
[322598028,1713106240498,-2144.10828255,0.00029236,2]
[322598029,1713106240507,-456.82493093,0.00029349,4]
[322598030,1713106240516,-1052.07868171,0.000294,2]
[322598031,1713106240525,-1060.90957541,0.000294,2]
[322598032,1713106240538,-153.77797141,0.000294,2]
[322598033,1713106240547,-478.1,0.00029447,2]
[322598034,1713106240556,-442.25500705,0.000295,3]
[322598035,1713106240565,-314.10690144,0.0002965,2]
[322598036,1713106240575,-220.28640523,0.00029699,2]
[322598037,1713106240584,-1000.0,0.00029759,10]
[322598038,1713106240594,-500.0,0.00029759,2]
[322598039,1713106240603,-200.0,0.00029759,2]
[322598040,1713106240612,-2144.10828255,0.00029769,2]
[322598041,1713106240621,-2532.03690616,0.00029866,2]
[322598042,1713106240631,-10385.00542279,0.00029866,2]
[322598043,1713106240640,-150.0,0.00029899,2]
[322598044,1713106240650,-5320.0,0.000299,2]
[322598045,1713106240659,-456.82493093,0.000299,4]
[322598046,1713106240668,-273.06406776,0.000299,2]
[322598047,1713106240678,-4575.65491624,0.00029971,2]
[322598048,1713106240688,-427.09027107,0.00029983,2]
[322598049,1713106240697,-155.31,0.00029988,2]
[322598050,1713106240707,-787.32457278,0.00029989,2]
[322598051,1713106240716,-155.31,0.00029989,2]
[322598053,1713106240725,-155.31,0.00029989,2]
[322598055,1713106240735,-9649.1381956,0.0002999,2]
[322598057,1713106240744,-75097.6233471,0.0002999,2]
[322598058,1713106240753,-19960.4811079,0.0002999,2]
[322598061,1713106240763,-64759.3927194,0.0002999,2]
[322598063,1713106240772,-787.32457278,0.0002999,2]
[322598064,1713106240783,-155.31,0.0002999,2]
[322598065,1713106240792,-155.31,0.0002999,2]
[322598066,1713106240804,-155.31,0.0002999,2]
[322598067,1713106240814,-155.31,0.0002999,2]
[322598068,1713106240823,-155.31,0.0002999,2]
[322598069,1713106240833,-155.31,0.0002999,2]
[322598070,1713106240843,-155.31,0.0002999,2]
[322598071,1713106240852,-155.31,0.0002999,2]
[322598072,1713106240862,-155.31,0.0002999,2]
[322598073,1713106240871,-155.31,0.0002999,2]
[322598074,1713106240881,-155.31,0.0002999,2]
[322598075,1713106240892,-155.31,0.0002999,2]
[322598076,1713106240904,-155.31,0.0002999,2]
[322598077,1713106240915,-155.31,0.0002999,2]
[322598078,1713106240924,-155.31,0.0002999,2]
[322598079,1713106240934,-155.31,0.0002999,2]
[322598080,1713106240943,-155.31,0.0002999,2]
[322598081,1713106240953,-155.31,0.0002999,2]
[322598082,1713106240962,-155.31,0.0002999,2]
[322598083,1713106240973,-155.31,0.0002999,2]
[322598084,1713106240983,-155.31,0.0002999,2]
[322598085,1713106240992,-155.31,0.0002999,2]
[322598086,1713106241002,-156.98059001,0.00029998,2]
[322598087,1713106241011,-1045.93755107,0.00029998,2]
[322598088,1713106241020,-2351.56165976,0.00029998,2]
[322598089,1713106241029,-155.0,0.00029998,2]
[322598090,1713106241042,-3077.0205572,0.00029998,2]
[322598091,1713106241052,-236.33990548,0.00029998,2]
[322598092,1713106241062,-155.0,0.00029998,2]
[322598093,1713106241072,-155.0,0.00029998,2]
[322598094,1713106241082,-155.0,0.00029998,2]
[322598095,1713106241091,-207.44342729,0.00029998,2]
[322598096,1713106241101,-708.5719525,0.00029998,2]
[322598097,1713106241111,-155.0,0.00029998,2]
[322598098,1713106241395,-16777.61755191,0.00029998,2]
[322598099,1713106241406,-376.19598272,0.00029998,2]
[322598100,1713106241415,-487.20647456,0.00029998,2]
[322598101,1713106241425,-236.34235656,0.00029998,2]
[322598102,1713106241434,-1763.91157847,0.00029998,2]
[322598103,1713106241444,-1865.81308926,0.00029998,2]
[322598104,1713106241453,-8890.75001694,0.00029998,2]
[322598105,1713106241463,-3061.38397972,0.00029998,7]
[322598106,1713106241472,-342.75064077,0.00029998,2]
[322598107,1713106241482,-35196.77114484,0.00029998,2]
[322598108,1713106241492,-1174.08046421,0.00029998,2]
[322598109,1713106241501,-170.29375398,0.00029998,2]
[322598110,1713106241511,-215.66768048,0.00029998,2]
[322598111,1713106241520,-312.9044161,0.00029998,2]
[322598112,1713106241530,-175.31276833,0.00029998,2]
[322598113,1713106241542,-155.0,0.00029998,2]
[322598114,1713106241552,-155.2260199,0.00029998,2]
[322598115,1713106241562,-200.38380491,0.00029998,2]
[322598116,1713106241572,-155.91835227,0.00029998,2]
[322598117,1713106241582,-155.0,0.00029998,2]
[322598118,1713106241592,-429.70013749,0.00029998,2]
[322598119,1713106241601,-306.32725016,0.00029998,2]
[322598120,1713106241611,-155.5073515,0.00029998,2]
[322598121,1713106241621,-156.03826883,0.00029998,2]
[322598122,1713106241631,-162.08381168,0.00029998,2]
[322598123,1713106241640,-233.00064628,0.00029998,2]
[322598124,1713106241650,-155.000001,0.00029998,2]
[322598125,1713106241659,-155.0,0.00029998,2]
[322598126,1713106241669,-203.98035309,0.00029998,2]
[322598127,1713106241679,-307.95729271,0.00029998,2]
[322598128,1713106241688,-1830.85054705,0.00029998,2]
[322598129,1713106241697,-358.52407588,0.00029998,20]
[322598130,1713106241707,-157.433909,0.00029998,2]
[322598131,1713106241716,-155.0,0.00029998,2]
[322598132,1713106241726,-225.32317733,0.00029998,2]
[322598133,1713106241735,-156.50791541,0.00029998,2]
[322598134,1713106241746,-161.39274574,0.00029998,2]
[322598135,1713106241755,-155.84776155,0.00029998,2]
[322598136,1713106241765,-156.04143664,0.00029998,2]
[322598137,1713106241775,-298.209,0.00029998,2]
[322598138,1713106241787,-156.5418763,0.00029998,2]
[322598139,1713106241797,-201.90480573,0.00029998,2]
[322598140,1713106241807,-249.52794948,0.00029998,2]
[322598141,1713106241816,-155.69644633,0.00029998,2]
[322598142,1713106241826,-197.64228287,0.00029998,2]
[322598143,1713106241835,-340.60320597,0.00029998,2]
[322598144,1713106241845,-176.4814728,0.00029998,2]
[322598145,1713106241855,-287.85742567,0.00029998,2]
[322598146,1713106241864,-1773.93631488,0.00029998,2]
[322598147,1713106241873,-192.30060608,0.00029998,2]
[322598148,1713106241884,-162.5270178,0.00029998,2]
[322598149,1713106241894,-161.43459036,0.00029998,2]
[322598150,1713106241903,-156.86508822,0.00029998,2]
[322598151,1713106241912,-246.40135432,0.00029998,2]
[322598152,1713106241921,-6186.97731092,0.00029998,2]
[322598153,1713106241932,-309.79828315,0.00029998,2]
[322598154,1713106241942,-365.36033927,0.00029998,2]
[322598155,1713106241951,-185.55076322,0.00029998,2]
[322598156,1713106241960,-3476.60796853,0.00029999,2]
[322598157,1713106241970,-152.42643536,0.00029999,2]
[322598158,1713106241980,-5835.31046315,0.00029999,2]
[322598159,1713106241989,-636.67807621,0.00029999,2]
[322598160,1713106241999,-545322.76692098,0.00029999,2]
[322598161,1713106242008,-500.0,0.00029999,2]
[322598162,1713106242017,-500.0,0.00029999,2]
[322598163,1713106242027,-500.0,0.00029999,2]
[322598164,1713106242039,-500.0,0.00029999,2]
[322598165,1713106242049,-206.27734706,0.00029999,2]
[322598166,1713106242058,-291.03227472,0.00029999,2]
[322598167,1713106242068,-500.0,0.00029999,2]
[322598168,1713106242078,-500.0,0.00029999,2]
[322598169,1713106242087,-500.0,0.00029999,2]
[322598170,1713106242096,-500.0,0.00029999,2]
[322598171,1713106242105,-500.0,0.00029999,2]
[322598172,1713106242115,-206.56245227,0.00029999,2]
[322598173,1713106242124,-600.0,0.00029999,2]
[322598174,1713106242133,-500.0,0.00029999,2]
[322598175,1713106242142,-500.0,0.00029999,2]
[322598176,1713106242152,-500.0,0.00029999,2]
[322598177,1713106242161,-500.0,0.00029999,2]
[322598178,1713106242170,-500.0,0.00029999,2]
[322598179,1713106242179,-500.0,0.00029999,2]
[322598180,1713106242189,-500.0,0.00029999,2]
[322598181,1713106242199,-500.0,0.00029999,2]
[322598182,1713106242208,-408.26581353,0.00029999,2]
[322598183,1713106242217,-500.0,0.00029999,2]
[322598184,1713106242226,-500.0,0.00029999,2]
[322598185,1713106242236,-500.0,0.00029999,2]
[322598186,1713106242245,-500.0,0.00029999,2]
[322598187,1713106242255,-500.0,0.00029999,2]
[322598188,1713106242264,-500.0,0.00029999,2]
[322598189,1713106242274,-500.0,0.00029999,2]
[322598190,1713106242286,-500.0,0.00029999,2]
[322598191,1713106242295,-500.0,0.00029999,2]
[322598192,1713106242305,-500.0,0.00029999,2]
[322598193,1713106242314,-500.0,0.00029999,2]
[322598194,1713106242323,-500.0,0.00029999,2]
[322598195,1713106242332,-500.0,0.00029999,2]
[322598196,1713106242342,-200.0,0.00029999,2]
[322598197,1713106242352,-547297.81456301,0.0003,2]
[322598198,1713106242361,-24674.41477347,0.0003,4]
[322598199,1713106242372,-520159.45822854,0.0003,2]
[322598200,1713106242388,-219820.18036838,0.0003,2]
[322598201,1713106242398,-19311.62545863,0.0003,4]
[322598202,1713106242408,-13559.04758957,0.0003,7]
[322598203,1713106242417,-420.91017053,0.0003,2]
[322598204,1713106242427,-534.37806003,0.0003,2]
[322598205,1713106242436,-405.59680121,0.0003,4]
[322598206,1713106242446,-155.0,0.0003,2]
[322598207,1713106242455,-1056.21147422,0.0003,4]
[322598208,1713106242465,-155.0,0.0003,2]
[322598209,1713106242474,-365.12124712,0.0003,4]
[322598210,1713106242484,-221.82,0.0003,2]
[322598211,1713106242493,-316.29,0.0003,2]
[322598212,1713106242503,-1919.58734442,0.0003,2]
[322598213,1713106242512,-2131956.3197655,0.0003,2]
[322598214,1713106242522,-410.913049,0.0003,4]
[322598215,1713106242531,-6493.52292929,0.0003,2]
[322598216,1713106242545,-9689.99525446,0.0003,3]
[322598217,1713106242555,-5113098.55178429,0.0003,2]
[322598218,1713106242567,-269840.67253395,0.0003,2]
[322598219,1713106242578,-3232.59791078,0.0003,2]
[322598220,1713106242602,-127799.99999998,0.0003,2]
[322598221,1713106242618,-7445.30900002,0.0003,2]
[322598222,1713106242629,-2312.1335,0.0003,2]
[322598223,1713106242640,-888.45289165,0.0003,2]
[322598224,1713106242651,-3055.35126391,0.0003,2]
[322598225,1713106242662,-79998.45718406,0.0003,2]
[322598226,1713106242674,-233618.80924131,0.0003,2]
[322598227,1713106242685,-33958.96692693,0.0003,2]
[322598228,1713106242696,-12764.2515,0.0003,2]
[322598250,1713106243163,-455.55999999,0.00019476,2]
[322598253,1713106243180,-250.01830307,0.00019476,2]
[322598255,1713106243192,-25.71110378,0.00019574,2]
[322598258,1713106243223,-129.28889622,0.00019574,2]
[322598260,1713106243234,-168.72579836,0.00024648,2]
[322598262,1713106243244,-242.55028188,0.00025789,2]
[322598263,1713106243255,-242.55028188,0.00025789,2]
[322598264,1713106243265,-242.55028188,0.00025789,2]
[322598265,1713106243276,-242.55028188,0.00025789,2]
[322598266,1713106243289,-5749.12963671,0.0003,2]
[322598269,1713106243314,-938.52882056,0.0003,2]
[322598287,1713106244218,-1220.67551642,0.000221,2]
[322598288,1713106244228,-242.55028188,0.00025789,2]
[322598289,1713106244238,-242.55028188,0.00025789,2]
[322598290,1713106244248,-242.55028188,0.00025789,2]
[322598291,1713106244257,-242.55028188,0.00025789,2]
[322598292,1713106244266,-242.55028188,0.0002588,2]
[322598293,1713106244275,-190.15556949,0.0002588,2]
[322598294,1713106244478,-52.39471239,0.0002588,2]
[322598295,1713106244488,-242.55028188,0.0002588,2]
[322598296,1713106244497,-242.55028188,0.0002588,2]
[322598297,1713106244506,-242.55028188,0.0002588,2]
[322598298,1713106244515,-242.55028188,0.0002588,2]
[322598299,1713106244525,-177.4016571,0.0002588,2]
[322598300,1713106244538,-65.14862478,0.0002588,2]
[322598301,1713106244547,-242.55028188,0.0002588,2]
[322598302,1713106244557,-242.55028188,0.0002588,2]
[322598303,1713106244566,-242.55028188,0.0002588,2]
[322598304,1713106244576,-242.55028188,0.0002588,2]
[322598305,1713106244586,-242.55028188,0.0002588,2]
[322598306,1713106244595,-242.55028188,0.0002588,2]
[322598307,1713106244605,-211.71976488,0.0002588,2]
[322598308,1713106244635,-30.830517,0.0002588,2]
[322598309,1713106244646,-796.92,0.00025988,2]
[322598310,1713106244656,-796.92,0.0002599,2]
[322598311,1713106244666,-796.92,0.0002599,2]
[322598312,1713106244676,-796.92,0.0002599,2]
[322598313,1713106244686,-796.92,0.0002599,2]
[322598314,1713106244697,-796.92,0.00029226,2]
[322598315,1713106244707,-13768.75922145,0.0003,2]
[322598316,1713106244718,-3000.0,0.0003,2]
[322598317,1713106244729,-500.0,0.0003,2]
[322598318,1713106244742,-206.0,0.0003,2]
[322598319,1713106244754,-3000.0,0.0003001,2]
[322598320,1713106244765,-3000.0,0.0003002,2]
[322598321,1713106244776,-4743.100627,0.0003003,2]
[322598322,1713106244792,-1000.0,0.00030069,2]
[322598323,1713106244803,-180.0,0.00030258,2]
[322598324,1713106244815,-2144.10828255,0.00030302,2]
[322598325,1713106244826,-865.0,0.00030302,2]
[322598326,1713106244839,-538.0,0.00030302,2]
[322598327,1713106244850,-968.0,0.00030307,2]
[322598328,1713106244861,-1391.0,0.00030307,2]
[322598329,1713106244872,-2291.0,0.00030307,2]
[322598330,1713106244885,-461.0,0.00030307,2]
[322598331,1713106244896,-541.0,0.00030307,2]
[322598332,1713106244907,-986.548,0.00030307,2]
[322598333,1713106244917,-1261.0,0.00030307,2]
[322598334,1713106244928,-608.0,0.00030307,2]
[322598335,1713106244938,-1948.0,0.00030307,2]
[322598336,1713106244948,-436.0,0.00030307,2]
[322598337,1713106244958,-278.0,0.00030307,2]
[322598338,1713106244967,-804.0,0.00030307,2]
[322598339,1713106244977,-399.0,0.00030307,2]
[322598340,1713106244987,-1472.0,0.00030307,2]
[322598341,1713106245264,-3042.979,0.00030307,2]
[322598342,1713106245275,-1140.0,0.00030307,2]
[322598343,1713106245289,-150.0,0.00030307,2]
[322598344,1713106245300,-2440.0,0.00030307,2]
[322598345,1713106245309,-1637.0,0.00030307,2]
[322598346,1713106245319,-355.0,0.00030307,2]
[322598347,1713106245329,-443.0,0.00030307,2]
[322598348,1713106245338,-214.0,0.00030307,2]
[322598349,1713106245348,-5669.0,0.00030307,2]
[322598350,1713106245358,-4803.0,0.00030307,2]
[322598351,1713106245368,-1312.0,0.00030307,2]
[322598352,1713106245377,-1054.0,0.00030307,2]
[322598353,1713106245387,-314.10690144,0.000304,2]
[322598354,1713106245397,-273.06406776,0.000304,2]
[322598355,1713106245406,-1255.29025422,0.00030411,4]
[322598356,1713106245416,-3577.88720557,0.00030411,4]
[322598357,1713106245425,-2532.03690616,0.00030544,2]
[322598358,1713106245434,-10385.00542279,0.00030544,2]
[322598359,1713106245444,-2144.10828255,0.00030835,2]
[322598360,1713106245454,-273.06406776,0.000309,2]
[322598361,1713106245463,-492.59944719,0.00031,4]
[322598362,1713106245473,-1000.0,0.00031,3]
[322598363,1713106245482,-93839.92862705,0.00031,2]
[322598364,1713106245605,-242.55028188,0.0002588,2]
[322598365,1713106245615,-17269.80991521,0.00031,2]
[322598366,1713106245627,-7565.03325136,0.00031,2]
[322598367,1713106245639,-10446.31304521,0.00031,2]
[322598368,1713106245651,-5629.85204041,0.00031,2]
[322598369,1713106245807,-242.55028188,0.0002588,2]
[322598370,1713106245817,-796.92,0.0002998,2]
[322598371,1713106245826,-3450.33139812,0.00031,2]
[322598391,1713106247116,-157.84000471,0.00025799,2]
[322598392,1713106247126,-242.55028188,0.0002588,2]
[322598393,1713106247136,-242.55028188,0.0002588,2]
[322598394,1713106247146,-232.90613533,0.0002588,2]
[322598395,1713106247177,-9.64414655,0.0002588,2]
[322598396,1713106247187,-242.55028188,0.0002588,2]
[322598397,1713106247197,-242.55028188,0.0002588,2]
[322598398,1713106247208,-242.55028188,0.0002588,2]
[322598399,1713106247217,-242.55028188,0.0002588,2]
[322598400,1713106247226,-50.88514252,0.00025889,2]
[322598401,1713106247237,-191.66513936,0.00025889,2]
[322598402,1713106247247,-242.55028188,0.0002589,2]
[322598403,1713106247257,-81.27119558,0.0002589,2]
[322598404,1713106247269,-161.2790863,0.0002589,2]
[322598405,1713106247279,-242.55028188,0.0002589,2]
[322598406,1713106247292,-15.2243337,0.0002589,2]
[322598407,1713106247303,-227.32594818,0.0002589,2]
[322598408,1713106247312,-242.55028188,0.0002589,2]
[322598409,1713106247321,-1120.39876994,0.000259,2]
[322598410,1713106247333,-254.936,0.000259,2]
[322598411,1713106247356,-6124.66523006,0.000259,2]
[322598412,1713106247365,-168.72579836,0.0002594,2]
[322598413,1713106247374,-1192.0,0.00026,2]
[322598414,1713106247383,-796.92,0.00029989,2]
[322598415,1713106247393,-796.92,0.00029989,2]
[322598416,1713106247402,-796.92,0.00029989,2]
[322598417,1713106247411,-458.47065722,0.00029997,2]
[322598418,1713106247421,-155.0,0.00029997,2]
[322598419,1713106247430,-1813.97320877,0.00029999,2]
[322598420,1713106247517,-3136.59192944,0.00029999,2]
[322598421,1713106247527,-392.60144572,0.00031,2]
[322598422,1713106287182,1019.58204492,0.00018128,2]
[322598423,1713106292740,209.37637678,0.00018128,2]
[322598424,1713106301455,1056.21147422,0.00018128,2]
[322598425,1713106332443,567.06106105,0.00018897,2]
[322598426,1713106424091,212.86668367,0.0002739,30]
[322598430,1713106473757,653.41941642,0.00018,2]
[322598432,1713106480078,207.53827236,0.00035938,120]
[322598441,1713106682821,150.0,0.00017945,2]
[322598442,1713106683128,227.66192232,0.00017945,2]
[322598443,1713106683150,1474.75807768,0.00017945,2]
[322598444,1713106712662,168.72579836,0.00017962,2]
[322598445,1713106736459,23900.0,0.00017631,2]
[322598446,1713106752249,744.36,0.00017626,2]
[322598447,1713106755252,500.0,0.00035938,30]
[322598448,1713106760982,500.0,0.00035938,30]
[322598449,1713106766482,500.0,0.00036434,30]
[322598450,1713106771150,500.0,0.00036434,30]
[322598451,1713106780094,500.0,0.00036434,30]
[322598452,1713106784788,500.0,0.00036434,30]
[322598453,1713106790093,161.99,0.00017695,2]
[322598454,1713106790329,161.99,0.00017779,2]
[322598455,1713106790576,161.99,0.00017863,2]
[322598456,1713106790996,161.99,0.00017947,2]
[322598457,1713106874841,591.7,0.00015304,2]
[322598458,1713106875079,591.7,0.00017568,2]
[322598459,1713106897149,537.55,0.00017246,2]
[322598460,1713106902068,1279.32448358,0.00018,2]
[322598461,1713106919145,159.10805262,0.00017946,2]
[322598462,1713106927661,194.14929762,0.00018011,2]
[322598463,1713106927942,207.5347557,0.00018011,2]
[322598464,1713106928138,210.32926479,0.00018011,2]
[322598465,1713106928569,1866.79917533,0.00018011,2]
[322598466,1713106930849,705.57830306,0.00018011,2]
[322598467,1713106932168,164.29423485,0.00018011,2]
[322598468,1713106933041,1240.61736969,0.00018011,2]
[322598469,1713106933526,174.12211115,0.00018011,2]
[322598470,1713106934192,155.0,0.00018011,2]
[322598471,1713106935791,1242.81455954,0.00018011,2]
[322598472,1713106938058,236.43311706,0.00018011,2]
[322598473,1713106938102,4577.47334107,0.00018011,2]
[322598474,1713106938144,10553.58850667,0.00018011,2]
[322598475,1713106938949,362.75793443,0.00018011,2]
[322598476,1713106939272,443.7704705,0.00018011,2]
[322598477,1713106941257,161.29586727,0.00018011,2]
[322598478,1713106941290,723.11,0.0001795,2]
[322598479,1713106941539,708.94208122,0.00018011,2]
[322598480,1713106943528,2212.48519324,0.00018011,2]
[322598481,1713106943900,155.0,0.0001801,2]
[322598482,1713106944406,419.22939929,0.0001801,2]
[322598483,1713106946419,155.0,0.00017949,2]
[322598484,1713106946709,2356.92753375,0.00017949,2]
[322598485,1713106947963,206.50643448,0.00017949,2]
[322598486,1713106948463,25191.07217235,0.00017568,2]
[322598487,1713106948499,155.0,0.00017949,2]
[322598488,1713106949522,407.90695941,0.00018011,2]
[322598489,1713106950110,155.0,0.00018011,2]
[322598490,1713106954173,342.88812472,0.00017948,2]
[322598491,1713106955487,4577.47334107,0.00018003,2]
[322598492,1713106955805,376.34801074,0.00018011,2]
[322598493,1713106956136,358.72677307,0.00018011,2]
[322598494,1713106957032,3378.54108249,0.00018011,2]
[322598495,1713106957063,161.90548675,0.00018011,2]
[322598496,1713106957881,296.28666493,0.00018011,2]
[322598497,1713106959881,155.0,0.00018011,2]
[322598498,1713106960073,4691.4866051,0.00018011,2]
[322598499,1713106960197,-155.0,0.00018011,2]
[322598500,1713106960735,-280.02708138,0.00018011,2]
[322598501,1713106961286,-275.57864962,0.00018011,2]
[322598502,1713106962805,-150.0,0.00018011,2]
[322598503,1713106964699,5539.30222896,0.0001801,2]
[322598504,1713106966149,215.75624408,0.0001801,2]
[322598505,1713106968152,1992.21788626,0.0001801,2]
[322598506,1713106970265,236.43431949,0.0001801,2]
[322598507,1713106970665,155.0,0.0001801,2]
[322598508,1713106971725,-150.0,0.00018011,2]
[322598509,1713106972741,-150.0,0.00018011,2]
[322598510,1713106973149,263.43136015,0.0001801,2]
[322598511,1713106973465,-150.0,0.00018011,2]
[322598512,1713106973904,2287.5881322,0.00018003,2]
[322598513,1713106973988,-150.0,0.00018011,2]
[322598514,1713106974483,-150.0,0.00018011,2]
[322598515,1713106974694,426.62808707,0.0001801,2]
[322598516,1713106975534,-150.0,0.00018011,2]
[322598517,1713106977033,683.27995213,0.0001801,2]
[322598518,1713106977190,538.59178431,0.0001801,2]
[322598519,1713106977640,405.1994349,0.0001801,2]
[322598520,1713106977668,-150.0,0.00018011,2]
[322598521,1713106978291,-150.0,0.00018011,2]
[322598522,1713106978504,23322.26226182,0.0001801,2]
[322598523,1713106978780,-150.0,0.00018011,2]
[322598524,1713106979283,-150.0,0.00018011,2]
[322598525,1713106981207,35210.93038898,0.0001801,2]
[322598526,1713106983814,150.0,0.0001801,2]
[322598527,1713106984787,202.07075132,0.0001801,2]
[322598528,1713106984822,155.0,0.0001801,2]
[322598529,1713106987980,155.0,0.0001801,2]
[322598530,1713106988527,314.64170046,0.00017922,2]
[322598531,1713106992911,-150.0,0.00018011,2]
[322598532,1713106993680,-150.0,0.00018011,2]
[322598533,1713106994659,426.60629358,0.0001801,2]
[322598534,1713106995121,-150.0,0.00018011,2]
[322598535,1713106996540,-150.0,0.00018011,2]
[322598536,1713106997290,-150.0,0.00018011,2]
[322598537,1713106997860,150.0,0.0001401,2]
[322598538,1713106998208,184.34,0.00017512,2]
[322598539,1713106998338,-150.0,0.00018011,2]
[322598540,1713106998417,184.34,0.00017517,2]
[322598541,1713106998634,184.34,0.00017521,2]
[322598542,1713106998869,-150.0,0.00018011,2]
[322598543,1713106998904,184.34,0.00017526,2]
[322598544,1713106999087,184.34,0.00017531,2]
[322598545,1713106999286,184.34,0.00017535,2]
[322598546,1713106999696,184.34,0.0001754,2]
[322598547,1713106999924,184.34,0.00017544,2]
[322598548,1713107000298,184.34,0.00017549,2]
[322598549,1713107000529,184.34,0.00017554,2]
[322598550,1713107000734,184.34,0.00017558,2]
[322598551,1713107000935,184.34,0.00017563,2]
[322598552,1713107001172,184.34,0.00017567,2]
[322598553,1713107001378,184.34,0.00017572,2]
[322598554,1713107001612,184.34,0.00017577,2]
[322598555,1713107001809,184.34,0.00017581,2]
[322598556,1713107002019,184.34,0.00017586,2]
[322598557,1713107002247,194.14929762,0.0001801,2]
[322598558,1713107003173,184.34,0.0001759,2]
[322598559,1713107003331,184.34,0.00017595,2]
[322598560,1713107003609,184.34,0.000176,2]
[322598561,1713107006036,10553.58850667,0.0001801,2]
[322598562,1713107006405,210.32926479,0.0001801,2]
[322598563,1713107008138,1242.81455954,0.0001801,2]
[322598564,1713107009996,-150.0,0.00018011,2]
[322598565,1713107010664,705.57830306,0.0001801,2]
[322598566,1713107011542,-150.0,0.00018011,2]
[322598567,1713107011975,-150.0,0.00018011,2]
[322598568,1713107012064,174.12211115,0.0001801,2]
[322598569,1713107012637,-150.0,0.00018011,2]
[322598570,1713107014753,-150.0,0.00018011,2]
[322598571,1713107014785,161.29586727,0.0001801,2]
[322598572,1713107015655,-41.96836623,0.00018011,2]
[322598573,1713107015677,-108.03163377,0.00018011,2]
[322598574,1713107016183,-150.0,0.00018011,2]
[322598575,1713107017291,212.86668367,0.0002739,30]
[322598576,1713107017623,-150.0,0.00018011,2]
[322598577,1713107017724,300.67307603,0.0001801,2]
[322598578,1713107018026,2212.48519324,0.0001801,2]
[322598579,1713107018229,42544.52953478,0.0001801,2]
[322598580,1713107018271,-150.0,0.00018011,2]
[322598581,1713107018305,155.0,0.0001801,2]
[322598582,1713107019969,419.22939929,0.0001801,2]
[322598583,1713107020046,4790.257247,0.00017958,2]
[322598584,1713107025466,19652.68230723,0.0001801,2]
[322598585,1713107030001,-150.0,0.00018011,2]
[322598586,1713107030833,-150.0,0.00018011,2]
[322598587,1713107031286,860.605731,0.0001801,2]
[322598588,1713107031746,206.50643448,0.0001801,2]
[322598589,1713107031907,-150.0,0.00018011,2]
[322598590,1713107032239,8270.95850776,0.0001801,2]
[322598591,1713107032672,-150.0,0.00018011,2]
[322598592,1713107033507,-150.0,0.00018011,2]
[322598593,1713107034207,261.83595001,0.0001801,2]
[322598594,1713107034617,-150.0,0.00018011,2]